fUST/lending_fUST_20250801
["ID","MTS","AMOUNT","RATE_DAILY","PERIOD"]
[376550334,1754016646888,-981.7,0.00022572,2]
[376550336,1754016646897,-1308.94,0.00022572,2]
[376550338,1754016646906,-460.0,0.00022572,2]
[376550340,1754016646914,-460.0,0.00022572,2]
[376550342,1754016646923,-460.0,0.00022572,2]
[376550344,1754016646936,-460.0,0.00022572,2]
[376550346,1754016646945,-460.0,0.00022572,2]
[376550348,1754016646954,-460.0,0.00022572,2]
[376550350,1754016646964,-460.0,0.00022573,2]
[376550352,1754016646974,-460.0,0.00022573,2]
[376550354,1754016646983,-460.0,0.00022573,2]
[376550356,1754016646993,-460.0,0.00022573,2]
[376550358,1754016647004,-460.0,0.00022573,2]
[376550360,1754016647013,-460.0,0.00022573,2]
[376550362,1754016647023,-460.0,0.00022573,2]
[376550364,1754016647032,-460.0,0.00022573,2]
[376550366,1754016647041,-817.95,0.00022573,2]
[376550368,1754016647050,-480.63,0.00022573,2]
[376550370,1754016647059,-460.0,0.00022573,2]
[376550372,1754016647068,-533.71,0.00022573,2]
[376550374,1754016647077,-460.0,0.00022574,2]
[376550376,1754016647087,-1319.65,0.00022574,2]
[376550378,1754016647096,-460.0,0.00022574,2]
[376550380,1754016647105,-460.0,0.00022575,2]
[376550382,1754016647114,-460.0,0.00022575,2]
[376550384,1754016647123,-785.14,0.00022575,2]
[376550387,1754016647134,-460.0,0.00022575,2]
[376550389,1754016647143,-460.0,0.00022575,2]
[376550391,1754016647152,-460.0,0.00022575,2]
[376550393,1754016647161,-460.0,0.00022575,2]
[376550395,1754016647170,-576.37937694,0.00022575,2]
[376550397,1754016647179,-460.0,0.00022575,2]
[376550398,1754016647188,-828.15,0.00022575,2]
[376550400,1754016647198,-460.0,0.00022575,2]
[376550402,1754016647207,-460.0,0.00022575,2]
[376550404,1754016647216,-460.0,0.00022575,2]
[376550406,1754016647225,-460.0,0.00022576,2]
[376550409,1754016647236,-460.0,0.00022576,2]
[376550410,1754016647245,-1219.82,0.00022576,2]
[376550412,1754016647256,-700.83,0.00022576,2]
[376550415,1754016647266,-966.66,0.00022576,2]
[376550416,1754016647276,-896.18,0.00022576,2]
[376550418,1754016647285,-1476.3273315,0.000226,4]
[376550421,1754016647295,-1000.0,0.00022621,2]
[376550423,1754016647304,-460.0,0.00022651,2]
[376550425,1754016647313,-460.0,0.0002266,2]
[376550426,1754016647322,-1039.77,0.0002266,2]
[376550429,1754016647332,-465.57,0.00022661,2]
[376550431,1754016647342,-1584.05,0.00022661,2]
[376550432,1754016647350,-460.0,0.00022661,2]
[376550434,1754016647360,-500.0,0.00022679,2]
[376550436,1754016647369,-222.9,0.00022694,5]
[376550438,1754016647378,-206.46649371,0.00022747,2]
[376550440,1754016647387,-368.8,0.00022791,2]
[376550443,1754016647397,-2713.9,0.00022846,2]
[376550445,1754016647406,-460.0,0.00022846,2]
[376550447,1754016647416,-460.0,0.00022846,2]
[376550449,1754016647425,-460.0,0.00022846,2]
[376550451,1754016647434,-1521.38,0.00022846,2]
[376550453,1754016647444,-460.0,0.00022846,2]
[376550455,1754016647456,-981.7,0.00022846,2]
[376550457,1754016647466,-1308.94,0.00022846,2]
[376550459,1754016647475,-460.0,0.00022846,2]
[376550460,1754016647485,-460.0,0.00022846,2]
[376550462,1754016647494,-460.0,0.00022846,2]
[376550465,1754016647510,-460.0,0.00022846,2]
[376550467,1754016647531,-460.0,0.00022846,2]
[376550469,1754016647549,-460.0,0.00022846,2]
[376550470,1754016647559,-460.0,0.00022847,2]
[376550472,1754016647568,-460.0,0.00022847,2]
[376550474,1754016647577,-460.0,0.00022847,2]
[376550476,1754016647586,-460.0,0.00022847,2]
[376550478,1754016647595,-460.0,0.00022847,2]
[376550480,1754016647604,-460.0,0.00022847,2]
[376550482,1754016647613,-460.0,0.00022847,2]
[376550484,1754016647622,-460.0,0.00022847,2]
[376550487,1754016647631,-817.95,0.00022847,2]
[376550489,1754016647640,-480.63,0.00022847,2]
[376550490,1754016647649,-460.0,0.00022847,2]
[376550493,1754016647659,-533.71,0.00022847,2]
[376550495,1754016647668,-460.0,0.00022848,2]
[376550496,1754016647677,-1319.65,0.00022848,2]
[376550498,1754016647686,-460.0,0.00022848,2]
[376550500,1754016647695,-460.0,0.00022849,2]
[376550503,1754016647706,-460.65850261,0.00022849,2]
[376550505,1754016647717,-785.14,0.00022849,2]
[376550507,1754016647726,-460.0,0.00022849,2]
[376550509,1754016647735,-460.0,0.00022849,2]
[376550511,1754016647744,-460.0,0.00022849,2]
[376550513,1754016647754,-460.0,0.00022849,2]
[376550515,1754016647763,-187.72609006,0.00022849,2]
[376550517,1754016647773,-828.15,0.00022849,2]
[376550519,1754016647782,-460.0,0.00022849,2]
[376550521,1754016647791,-460.0,0.00022849,2]
[376550523,1754016647800,-460.0,0.00022849,2]
[376550525,1754016647809,-460.0,0.0002285,2]
[376550527,1754016647818,-460.0,0.0002285,2]
[376550529,1754016647827,-1219.82,0.0002285,2]
[376550531,1754016647836,-700.83,0.0002285,2]
[376550533,1754016647846,-966.66,0.0002285,2]
[376550535,1754016647856,-896.18,0.0002285,2]
[376550537,1754016647864,-4746.95888177,0.000229,7]
[376550731,1754016649831,-3273.31,0.00021206,2]
[376550733,1754016649840,-3273.31,0.0002148,2]
[376550735,1754016649850,-1112.12928281,0.00021754,2]
[376550737,1754016649861,-2161.18071719,0.00021754,2]
[376550740,1754016649871,-3273.31,0.00022028,2]
[376550742,1754016649880,-1556.28,0.0002266,2]
[376550743,1754016649889,-824.0336963,0.000229,7]
[376550797,1754016650387,-460.0,0.00020927,2]
[376550799,1754016650396,-460.0,0.00021201,2]
[376550801,1754016650405,-272.27552575,0.00022302,2]
[376551061,1754017601129,-5000.0,0.00019553,6]
[376551062,1754017601653,-1000.0,0.0001995,2]
[376551063,1754017601675,-917.7246871,0.00019956,2]
[376551064,1754017601694,-160.0,0.0002,3]
[376551065,1754017601714,-160.0,0.0002,3]
[376551066,1754017601736,-153.17739845,0.00020472,2]
[376551067,1754017601757,-155.11558808,0.00020829,2]
[376551068,1754017601777,-245.06175123,0.00020926,2]
[376551069,1754017650084,-150.0,0.000189,2]
[376551070,1754017650105,-401.0,0.00020926,2]
[376551071,1754017650127,-300.0,0.00020926,2]
[376551072,1754017650148,-460.0,0.00020927,2]
[376551073,1754017650168,-460.0,0.00020927,2]
[376551074,1754017650189,-546.86218132,0.00020927,2]
[376551075,1754017650211,-267.20429779,0.00020927,2]
[376551076,1754017693982,247.944737,0.00013699,2]
[376551078,1754017745129,-247.944737,0.00020187,2]
[376551079,1754017745160,-300.0,0.00020926,2]
[376551080,1754017745183,-196.26301827,0.00020927,2]
[376551081,1754017745207,-212.54533343,0.00020927,2]
[376551082,1754017745229,-460.0,0.00020927,2]
[376551083,1754017745250,-460.0,0.00020927,2]
[376551084,1754017745272,-461.17567734,0.00020927,2]
[376551085,1754017745292,-472.47517513,0.00020927,2]
[376551086,1754017745313,-468.53449025,0.00020927,2]
[376551087,1754017745334,-460.0,0.00020927,2]
[376551088,1754017745355,-464.80584074,0.00020927,2]
[376551089,1754017745376,-460.0,0.00020927,2]
[376551090,1754017745414,-460.0,0.00020927,2]
[376551091,1754017745445,-460.0,0.00020927,2]
[376551092,1754017745467,-465.29724199,0.00020927,2]
[376551093,1754017745487,-460.0,0.00020927,2]
[376551094,1754017745508,-460.0,0.00020927,2]
[376551095,1754017745531,-863.76,0.00020927,2]
[376551096,1754017745552,-460.0,0.00020927,2]
[376551097,1754017745576,-1042.41,0.00020927,2]
[376551098,1754017745597,-460.0,0.00020927,2]
[376551099,1754017745620,-891.79,0.00020927,2]
[376551100,1754017745643,-460.0,0.00020927,2]
[376551101,1754017745665,-460.0,0.00020928,2]
[376551102,1754017745687,-460.0,0.00020928,2]
[376551103,1754017745712,-2580.03,0.00020928,2]
[376551104,1754017745738,-1905.31,0.00020928,2]
[376551105,1754017745762,-496.42,0.00020928,2]
[376551106,1754017745784,-460.0,0.00020928,2]
[376551107,1754017745806,-460.0,0.00020928,2]
[376551108,1754017745833,-534.22707281,0.00020928,2]
[376551109,1754017745856,-800.33,0.00020928,2]
[376551110,1754017745878,-460.0,0.00020928,2]
[376551111,1754017745899,-460.0,0.00020929,2]
[376551112,1754017745920,-251.37595869,0.00020929,2]
[376551116,1754017783663,181.507977,0.00020032,2]
[376551117,1754017784532,155.11558808,0.0002083,2]
[376551142,1754017832611,-460.0,0.00020927,2]
[376551144,1754017832621,-47.64189283,0.00020927,2]
[376551150,1754017832662,-412.35810717,0.00020927,2]
[376551152,1754017832671,-460.0,0.00020927,2]
[376551154,1754017832681,-460.0,0.00020927,2]
[376551156,1754017832690,-464.79,0.00020927,2]
[376551158,1754017832699,-654.47,0.00020928,2]
[376551160,1754017832708,-300.0,0.00020928,2]
[376551162,1754017832718,-634.79,0.00020928,2]
[376551164,1754017832727,-1115.7,0.00020928,2]
[376551166,1754017832736,-208.62404131,0.00020929,2]
[376551168,1754017832744,-464.40043515,0.00020929,2]
[376551170,1754017832753,-460.0,0.00020929,2]
[376551193,1754017832866,-474.03334484,0.00020929,2]
[376551198,1754017832907,-460.0,0.00020929,2]
[376551201,1754017832916,-460.0,0.00020929,2]
[376551204,1754017832925,-510.92500665,0.00020929,2]
[376551206,1754017832934,-460.0,0.00020929,2]
[376551208,1754017832944,-460.0,0.00020929,2]
[376551210,1754017832953,-460.0,0.00020929,2]
[376551212,1754017832962,-572.04404519,0.00020929,2]
[376551214,1754017832972,-410.94605024,0.00020929,2]
[376551217,1754017832984,-70.41394976,0.00020929,2]
[376551219,1754017832994,-469.29184274,0.00020929,2]
[376551221,1754017833003,-402.13409213,0.00020929,2]
[376551223,1754017833012,-465.32062918,0.00020929,2]
[376551225,1754017833021,-101.89830236,0.00020929,2]
[376551227,1754017833034,-364.64934438,0.00020929,2]
[376551228,1754017833044,-471.07426519,0.00020929,2]
[376551230,1754017833054,-460.0,0.00020929,2]
[376551232,1754017833064,-460.0,0.00020929,2]
[376551233,1754017833073,-402.29277943,0.00020929,2]
[376551235,1754017833083,-460.0,0.00020929,2]
[376551237,1754017833092,-460.0,0.00020929,2]
[376551239,1754017833103,-460.0,0.00020929,2]
[376551240,1754017833112,-460.0,0.00020929,2]
[376551241,1754017833122,-467.14144105,0.00020929,2]
[376551243,1754017833132,-460.0,0.00020929,2]
[376551244,1754017833142,-460.0,0.00020929,2]
[376551247,1754017833151,-460.91964864,0.00020929,2]
[376551249,1754017833161,-460.0,0.00020929,2]
[376551251,1754017833171,-460.0,0.00020929,2]
[376551253,1754017833180,-463.73381716,0.00020929,2]
[376551255,1754017833189,-470.95776432,0.00020929,2]
[376551256,1754017833198,-460.0,0.00020929,2]
[376551258,1754017833207,-460.0,0.00020929,2]
[376551260,1754017833216,-460.0,0.00020929,2]
[376551262,1754017833225,-460.0,0.00020929,2]
[376551264,1754017833234,-460.0,0.00020929,2]
[376551266,1754017833244,-529.13858728,0.00020929,2]
[376551268,1754017833253,-460.0,0.00020929,2]
[376551270,1754017833263,-359.06543187,0.00020929,2]
[376551272,1754017833272,-460.0,0.00020929,2]
[376551274,1754017833282,-347.79645041,0.00020929,2]
[376551446,1754017838668,-112.20354959,0.00020929,2]
[376551448,1754017838678,-460.0,0.00020929,2]
[376551450,1754017838688,-497.96359086,0.00020929,2]
[376551452,1754017838700,-82.50640914,0.00020929,2]
[376551453,1754017838709,-461.39044425,0.00020929,2]
[376551454,1754017838719,-460.0,0.00020929,2]
[376551455,1754017838727,-460.0,0.00020929,2]
[376551456,1754017838736,-460.0,0.00020929,2]
[376551457,1754017838745,-168.65734851,0.00020929,2]
[376551458,1754017838756,-291.34265149,0.00020929,2]
[376551459,1754017838766,-460.0,0.00020929,2]
[376551460,1754017838775,-238.82905095,0.00020929,2]
[376551461,1754017838787,-221.17094905,0.00020929,2]
[376551462,1754017838796,-460.0,0.00020929,2]
[376551463,1754017838806,-460.0,0.00020929,2]
[376551464,1754017838815,-460.0,0.00020929,2]
[376551465,1754017838824,-898.93,0.00020929,2]
[376551466,1754017838834,-460.0,0.00020929,2]
[376551467,1754017838845,-460.0,0.00020929,2]
[376551468,1754017838855,-460.0,0.00020929,2]
[376551469,1754017838864,-460.0,0.00020929,2]
[376551470,1754017838874,-460.0,0.00020929,2]
[376551471,1754017838884,-460.0,0.00020929,2]
[376551472,1754017838894,-1338.9,0.0002093,2]
[376551473,1754017838903,-460.0,0.0002093,2]
[376551475,1754017838912,-460.0,0.0002093,2]
[376551476,1754017838922,-280.65641991,0.00020973,2]
[376551477,1754017838931,-150.0,0.00021,2]
[376551478,1754017838940,-542.6,0.00021016,2]
[376551479,1754017838950,-460.0,0.00021016,2]
[376551480,1754017838959,-460.0,0.00021016,2]
[376551481,1754017838968,-465.17762929,0.00021016,2]
[376551482,1754017838978,-460.0,0.00021016,2]
[376551483,1754017838987,-355.91558255,0.00021016,2]
[376551484,1754017838999,-104.08441745,0.00021016,2]
[376551485,1754017839008,-460.0,0.00021016,2]
[376551486,1754017839018,-333.38866103,0.00021016,2]
[376551487,1754017839027,-571.26,0.00021016,2]
[376551488,1754017839036,-460.0,0.00021016,2]
[376551489,1754017839046,-460.0,0.00021016,2]
[376551490,1754017839055,-151.94558431,0.00021017,2]
[376551491,1754017839064,-151.63543891,0.00021017,2]
[376551492,1754017839073,-199.51544049,0.00021017,2]
[376551493,1754017839084,-151.0,0.00021017,2]
[376551494,1754017839093,-151.0,0.00021017,2]
[376551495,1754017839102,-151.0,0.00021017,2]
[376551496,1754017839111,-151.0,0.00021017,2]
[376551497,1754017839121,-151.0,0.00021017,2]
[376551498,1754017839131,-519.0,0.00021017,2]
[376551499,1754017839140,-151.0,0.00021017,2]
[376551500,1754017839150,-152.07603427,0.00021017,2]
[376551501,1754017839159,-151.33228405,0.00021017,2]
[376551502,1754017839168,-151.0,0.00021017,2]
[376551503,1754017839178,-151.0,0.00021017,2]
[376551504,1754017839190,-151.0,0.00021017,2]
[376551505,1754017839199,-241.66024965,0.00021017,2]
[376551506,1754017839208,-152.19390297,0.00021017,2]
[376551507,1754017839217,-151.0,0.00021017,2]
[376551508,1754017839227,-151.55838376,0.00021017,2]
[376551509,1754017839237,-151.0,0.00021017,2]
[376551510,1754017839247,-151.0,0.00021017,2]
[376551511,1754017839256,-151.63516083,0.00021017,2]
[376551512,1754017839265,-151.0,0.00021017,2]
[376551513,1754017839274,-500.0,0.00021017,2]
[376551514,1754017839287,-537.2080796,0.00021201,2]
[376551515,1754017839301,-460.0,0.00021201,2]
[376551516,1754017839312,-460.0,0.00021201,2]
[376551517,1754017839322,-460.0,0.00021201,2]
[376551518,1754017839331,-460.0,0.00021201,2]
[376551519,1754017839341,-1042.41,0.00021201,2]
[376551520,1754017839350,-460.0,0.00021201,2]
[376551521,1754017839360,-891.79,0.00021201,2]
[376551522,1754017839369,-460.0,0.00021201,2]
[376551523,1754017839379,-460.0,0.00021201,2]
[376551524,1754017839388,-460.0,0.00021201,2]
[376551525,1754017839398,-460.0,0.00021201,2]
[376551526,1754017839408,-460.0,0.00021201,2]
[376551527,1754017839417,-464.79,0.00021201,2]
[376551528,1754017839427,-2580.03,0.00021202,2]
[376551529,1754017839436,-460.0,0.00021202,2]
[376551530,1754017839445,-1905.31,0.00021202,2]
[376551531,1754017839454,-496.42,0.00021202,2]
[376551532,1754017839464,-460.0,0.00021202,2]
[376551533,1754017839474,-301.25683927,0.00021202,2]
[376551534,1754017839484,-460.0,0.00021202,2]
[376551535,1754017839494,-800.33,0.00021202,2]
[376551536,1754017839503,-460.0,0.00021202,2]
[376551537,1754017839513,-654.47,0.00021202,2]
[376551538,1754017839522,-634.79,0.00021202,2]
[376551539,1754017839532,-500.0,0.00021202,2]
[376551540,1754017839542,-1115.7,0.00021202,2]
[376551541,1754017839551,-419.02848745,0.00021203,2]
[376551542,1754017839560,-460.0,0.00021203,2]
[376551543,1754017839570,-460.0,0.00021203,2]
[376551544,1754017839579,-460.0,0.00021203,2]
[376551545,1754017839589,-145.07165999,0.00021203,2]
[376551546,1754017839604,-314.92834001,0.00021203,2]
[376551547,1754017839614,-460.0,0.00021203,2]
[376551548,1754017839624,-460.0,0.00021203,2]
[376551549,1754017839634,-460.0,0.00021203,2]
[376551550,1754017839644,-460.0,0.00021203,2]
[376551551,1754017839654,-460.0,0.00021203,2]
[376551552,1754017839663,-460.0,0.00021203,2]
[376551553,1754017839673,-580.47,0.00021203,2]
[376551554,1754017839682,-460.0,0.00021203,2]
[376551555,1754017839692,-460.0,0.00021203,2]
[376551556,1754017839702,-215.26461387,0.00021203,2]
[376551557,1754017839712,-460.0,0.00021203,2]
[376551558,1754017839721,-460.0,0.00021203,2]
[376551559,1754017839732,-460.0,0.00021203,2]
[376551560,1754017839741,-460.0,0.00021203,2]
[376551561,1754017839751,-898.93,0.00021203,2]
[376551562,1754017839760,-460.0,0.00021203,2]
[376551563,1754017839771,-460.0,0.00021203,2]
[376551564,1754017839780,-460.0,0.00021203,2]
[376551565,1754017839790,-460.0,0.00021203,2]
[376551566,1754017839800,-1338.9,0.00021204,2]
[376551567,1754017839809,-331.71745043,0.00021204,2]
[376551905,1754017843617,-128.28254957,0.00021204,2]
[376551907,1754017843627,-460.0,0.00021204,2]
[376551909,1754017843635,-277.39294208,0.0002129,2]
[376552187,1754017846425,-460.0,0.00020928,2]
[376552188,1754017846435,-460.0,0.00020929,2]
[376552189,1754017846444,-80.0,0.0002093,2]
[376552331,1754017848652,-287.22960879,0.0002093,2]
[376552672,1754017853889,160.0,0.0002,3]
[376552673,1754017854758,160.0,0.0002,3]
[376552677,1754017963262,292.402329,0.00027397,120]
[376552678,1754017963283,292.402329,0.00027397,120]
[376552679,1754017963304,66.195342,0.00027397,120]
[376552686,1754018707665,237.690484,0.00013699,2]
[376552688,1754018757135,-156.46693815,0.00019103,2]
[376552689,1754018757155,-215.04479303,0.00019943,2]
[376552694,1754018843098,-181.080805,0.00019927,2]
[376552695,1754018843120,-138.80772313,0.00019943,2]
[376552701,1754018948119,-646.14748384,0.00019943,2]
[376552702,1754018948139,-160.0,0.0002,3]
[376552703,1754018948161,-160.0,0.0002,3]
[376552704,1754018948182,-179.74835231,0.00020105,2]
[376552705,1754018948206,-237.690484,0.00020187,2]
[376552756,1754019032672,-1200.0,0.00020925,2]
[376552758,1754019032682,-300.0,0.00020925,2]
[376552760,1754019032691,-460.0,0.00020926,2]
[376552762,1754019032700,-460.0,0.00020926,2]
[376552764,1754019032709,-910.33,0.00020926,2]
[376552766,1754019032719,-460.0,0.00020926,2]
[376552768,1754019032729,-307.88669538,0.00020926,2]
[376552770,1754019032742,-1139.95330462,0.00020926,2]
[376552772,1754019032752,-460.0,0.00020926,2]
[376552774,1754019032761,-460.0,0.00020926,2]
[376552776,1754019032770,-460.0,0.00020927,2]
[376552778,1754019032780,-113.63693519,0.00020927,2]
[376552784,1754019032799,-346.36306481,0.00020927,2]
[376552786,1754019032808,-460.0,0.00020927,2]
[376552788,1754019032817,-460.0,0.00020927,2]
[376552790,1754019032826,-460.0,0.00020927,2]
[376552793,1754019032836,-460.0,0.00020927,2]
[376552796,1754019032845,-460.0,0.00020927,2]
[376552799,1754019032854,-523.86,0.00020927,2]
[376552801,1754019032863,-460.0,0.00020927,2]
[376552803,1754019032872,-460.0,0.00020927,2]
[376552805,1754019032881,-590.04,0.00020927,2]
[376552807,1754019032890,-460.0,0.00020927,2]
[376552809,1754019032899,-460.0,0.00020927,2]
[376552811,1754019032908,-2289.69,0.00020927,2]
[376552813,1754019032917,-460.0,0.00020927,2]
[376552815,1754019032927,-1293.4,0.00020927,2]
[376552817,1754019032935,-460.0,0.00020927,2]
[376552819,1754019032945,-470.75738605,0.00020927,2]
[376552821,1754019032955,-460.0,0.00020927,2]
[376552823,1754019032963,-460.0,0.00020927,2]
[376552825,1754019032973,-1183.73,0.00020927,2]
[376552827,1754019032982,-318.3240979,0.00020927,2]
[376552829,1754019032992,-993.26,0.00020927,2]
[376552831,1754019033000,-460.0,0.00020927,2]
[376552833,1754019033010,-460.0,0.00020927,2]
[376552835,1754019033019,-460.0,0.00020927,2]
[376552837,1754019033028,-460.0,0.00020927,2]
[376552839,1754019033038,-460.0,0.00020927,2]
[376552841,1754019033047,-219.43,0.00020927,2]
[376552843,1754019033057,-460.0,0.00020927,2]
[376552845,1754019033066,-460.0,0.00020927,2]
[376552847,1754019033075,-460.0,0.00020927,2]
[376552849,1754019033085,-460.0,0.00020927,2]
[376552851,1754019033094,-465.0,0.00020927,2]
[376552852,1754019033103,-460.0,0.00020927,2]
[376552855,1754019033113,-460.0,0.00020927,2]
[376552857,1754019033122,-895.11,0.00020927,2]
[376552858,1754019033131,-460.0,0.00020927,2]
[376552861,1754019033140,-840.94,0.00020927,2]
[376552862,1754019033149,-977.36,0.00020927,2]
[376552864,1754019033158,-460.0,0.00020927,2]
[376552866,1754019033168,-466.47050818,0.00020927,2]
[376552868,1754019033177,-460.0,0.00020927,2]
[376552870,1754019033187,-460.0,0.00020927,2]
[376552872,1754019033196,-484.27,0.00020927,2]
[376552874,1754019033205,-302.26452616,0.00020927,2]
[376552876,1754019033215,-460.0,0.00020928,2]
[376552878,1754019033224,-460.0,0.00020928,2]
[376552880,1754019033234,-293.0421174,0.00020928,2]
[376552882,1754019033243,-604.26,0.00020928,2]
[376552883,1754019033254,-460.0,0.00020928,2]
[376552885,1754019033263,-460.0,0.00020928,2]
[376552886,1754019033273,-460.0,0.00020928,2]
[376552887,1754019033283,-471.47985654,0.00020928,2]
[376552888,1754019033292,-460.0,0.00020928,2]
[376552889,1754019033302,-460.0,0.00020928,2]
[376552890,1754019033312,-460.0,0.00020928,2]
[376552891,1754019033321,-460.0,0.00020928,2]
[376552892,1754019033330,-461.9334455,0.00020928,2]
[376552893,1754019033341,-460.0,0.00020928,2]
[376552894,1754019033350,-414.63265411,0.00020928,2]
[376552895,1754019033359,-598.72,0.00020928,2]
[376552896,1754019033369,-460.0,0.00020928,2]
[376552897,1754019033378,-460.0,0.00020928,2]
[376552898,1754019033388,-460.0,0.00020928,2]
[376552899,1754019033397,-460.0,0.00020928,2]
[376552900,1754019033407,-460.0,0.00020928,2]
[376552901,1754019033417,-466.00883996,0.00020928,2]
[376552902,1754019033427,-468.29079792,0.00020928,2]
[376552903,1754019033436,-530.28991193,0.00020928,2]
[376552904,1754019033446,-3036.8,0.00020928,2]
[376552905,1754019033456,-500.0,0.00020928,2]
[376552906,1754019033466,-440.08714519,0.00020928,2]
[376552907,1754019033476,-460.0,0.00020928,2]
[376552908,1754019033486,-653.32,0.00020928,2]
[376552909,1754019033497,-460.0,0.00020928,2]
[376552910,1754019033507,-462.19495924,0.00020928,2]
[376552911,1754019033516,-465.04072176,0.00020928,2]
[376552912,1754019033525,-460.0,0.00020928,2]
[376552913,1754019033535,-460.0,0.00020928,2]
[376552914,1754019033545,-460.0,0.00020929,2]
[376552915,1754019033555,-460.0,0.00020929,2]
[376552916,1754019033565,-460.0,0.00020929,2]
[376552917,1754019033574,-463.33077549,0.00020929,2]
[376552918,1754019033584,-460.0,0.00020929,2]
[376552919,1754019033593,-462.60745435,0.00020929,2]
[376552920,1754019033603,-463.689526,0.00020929,2]
[376552921,1754019033613,-790.87,0.00020929,2]
[376552922,1754019033623,-460.0,0.00020929,2]
[376552923,1754019033632,-1462.77,0.00020929,2]
[376552924,1754019033642,-500.0,0.00020973,2]
[376552925,1754019033652,-1942.28339133,0.00021,5]
[376552926,1754019033666,-876.39,0.00021016,2]
[376552927,1754019033676,-460.0,0.00021016,2]
[376552928,1754019033685,-500.0,0.00021035,2]
[376552929,1754019033695,-15165.95410888,0.00021103,2]
[376552930,1754019033706,-458.42,0.00021191,10]
[376552931,1754019033715,-382.02,0.00021191,10]
[376552932,1754019033724,-498.88,0.00021192,10]
[376552933,1754019033734,-550.11,0.00021192,10]
[376552934,1754019033744,-163.0,0.000212,3]
[376552935,1754019033753,-460.0,0.000212,2]
[376552936,1754019033763,-910.33,0.000212,2]
[376552937,1754019033772,-1447.84,0.000212,2]
[376552938,1754019033782,-489.30054674,0.00021201,2]
[376552939,1754019033792,-224.72871113,0.00021201,2]
[376552940,1754019033801,-460.0,0.00021201,2]
[376552941,1754019033811,-460.0,0.00021201,2]
[376552942,1754019033820,-460.0,0.00021201,2]
[376552943,1754019033830,-460.0,0.00021201,2]
[376552944,1754019033839,-460.0,0.00021201,2]
[376552945,1754019033848,-460.0,0.00021201,2]
[376552946,1754019033859,-590.04,0.00021201,2]
[376552947,1754019033868,-460.0,0.00021201,2]
[376552948,1754019033878,-460.0,0.00021201,2]
[376552949,1754019033887,-2289.69,0.00021201,2]
[376552950,1754019033896,-460.0,0.00021201,2]
[376552951,1754019033905,-1293.4,0.00021201,2]
[376552952,1754019033914,-268.13082958,0.00021201,2]
[376552953,1754019033923,-460.0,0.00021201,2]
[376552954,1754019033933,-460.0,0.00021201,2]
[376552955,1754019033942,-1183.73,0.00021201,2]
[376552956,1754019033952,-993.26,0.00021201,2]
[376552957,1754019033961,-460.0,0.00021201,2]
[376552958,1754019033971,-460.0,0.00021201,2]
[376552959,1754019033981,-460.0,0.00021201,2]
[376552960,1754019033990,-460.0,0.00021201,2]
[376552961,1754019034001,-460.0,0.00021201,2]
[376552962,1754019034010,-460.0,0.00021201,2]
[376552963,1754019034019,-460.0,0.00021201,2]